Workbook

Sheet Bin Data Table
A1: Bin | B1: Travel(m) | C1: ComeDown | D1: RearUp | E1: Turn | F1: Stretch | G1: HangCudl | H1: HangVert | I1: CDfromPR | J1: CDtoPR | K1: RUfromPR | L1: RUtoPR | M1: LandVert | N1: WalkLeft | O1: WalkRght | P1: Stationa | Q1: Drnk(S1) | R1: Eat(Z1) | S1: Jump | T1: Unknown | U1: HVfromRU | V1: HVfromHC | W1: ReptJump | X1: Circle | Y1: Dig | Z1: Forage | AA1: Pause | AB1: Urinate | AC1: Groom | AD1: Sleep | AE1: Twitch | AF1: Arousal | AG1: Awaken | AH1: Chew | AI1: Sniff | AJ1: RemainRU | AK1: RemainPR | AL1: RemainHV | AM1: RemainHC | AN1: RemainLw | AO1: WalkSlow | AP1: No Data | AQ1: Drnk(S2) | AR1: Drnk(S3) | AS1: Eat(Z2) | AT1: Eat(Z3) | AU1: SUM
A2: 1 | B2: 52.64313889 | C2: 27.03998375 | D2: 16.1199913 | E2: 249.5618286 | F2: 41.64000702 | G2: 16.31999016 | H2: 0 | I2: 93.31996918 | J2: 48.40005875 | K2: 42.96004486 | L2: 93.95998383 | M2: 20.03998947 | N2: 132.6399994 | O2: 117.8400345 | P2: 2.520000219 | Q2: 4.440000057 | R2: 308.4400635 | S2: 7.999999523 | T2: 38.76000214 | U2: 43.56005859 | V2: 13.79999256 | W2: 0 | X2: 0 | Y2: 1.120000005 | Z2: 3.600000143 | AA2: 35.56000137 | AB2: 0 | AC2: 59.27999878 | AD2: 0 | AE2: 0 | AF2: 0 | AG2: 0 | AH2: 48.72002411 | AI2: 172.0401001 | AJ2: 52.24003983 | AK2: 63.24003983 | AL2: 348.7201843 | AM2: 110.9600143 | AN2: 1124.314697 | AO2: 258.2810974 | AP2: 0 | AQ2: 0 | AR2: 0 | AS2: 0 | AT2: 0 | AU2: =SUM(C2:AT2) -> 3597.438195
A3: 2 | B3: 33.78761292 | C3: 18.27998924 | D3: 8.999997139 | E3: 237.9216614 | F3: 28.0399971 | G3: 25.79998016 | H3: 0 | I3: 62.88015747 | J3: 31.03997993 | K3: 25.87998199 | L3: 63.32012177 | M3: 10.59999561 | N3: 58.76002884 | O3: 58.84002304 | P3: 3.24000001 | Q3: 2.160000086 | R3: 160.9600525 | S3: 2.960000038 | T3: 25.12000275 | U3: 26.87998009 | V3: 28.07998848 | W3: 0 | X3: 0 | Y3: 0.719999969 | Z3: 1.879999995 | AA3: 60.15999985 | AB3: 0 | AC3: 480.6399841 | AD3: 0 | AE3: 0 | AF3: 0 | AG3: 0 | AH3: 41.64000702 | AI3: 83.92002869 | AJ3: 38.56000519 | AK3: 54.16001511 | AL3: 312.1201172 | AM3: 157.1600494 | AN3: 1256.394409 | AO3: 232.8807983 | AP3: 0 | AQ3: 0 | AR3: 0 | AS3: 0 | AT3: 0 | AU3: =SUM(C3:AT3) -> 3599.997352
A4: 3 | B4: 18.7552948 | C4: 13.19999599 | D4: 4.440000057 | E4: 95.55995178 | F4: 8.839999199 | G4: 21.35998535 | H4: 0 | I4: 51.68009186 | J4: 16.91998863 | K4: 20.67998695 | L4: 57.40009689 | M4: 4 | N4: 31.99999237 | O4: 29.19999504 | P4: 1.919999957 | Q4: 0.4799999893 | R4: 146.7600708 | S4: 2.120000124 | T4: 15.56000042 | U4: 16.19998932 | V4: 16.7999897 | W4: 0 | X4: 0 | Y4: 0.8400000334 | Z4: 1.439999938 | AA4: 187.9600067 | AB4: 0 | AC4: 951.8001099 | AD4: 49.72000122 | AE4: 6.400000095 | AF4: 0 | AG4: 10.88000011 | AH4: 41.3999939 | AI4: 92.52000427 | AJ4: 32.63999939 | AK4: 49.00001907 | AL4: 172.0001373 | AM4: 190.960022 | AN4: 1136.118774 | AO4: 121.1999207 | AP4: 0 | AQ4: 0 | AR4: 0 | AS4: 0 | AT4: 0 | AU4: =SUM(C4:AT4) -> 3599.999123
A5: 4 | B5: 27.56932068 | C5: 13.47999477 | D5: 6.919998169 | E5: 138.519928 | F5: 17.27999687 | G5: 30.11997986 | H5: 0 | I5: 81.28006744 | J5: 32.63998032 | K5: 32.23997879 | L5: 79.60006714 | M5: 8.679997444 | N5: 51.84001541 | O5: 51.08001328 | P5: 3.359999895 | Q5: 4.679999828 | R5: 243.7200165 | S5: 3.839999676 | T5: 18.92000008 | U5: 23.63998222 | V5: 27.71998215 | W5: 0 | X5: 0 | Y5: 0.6399999857 | Z5: 1.400000095 | AA5: 97.87999725 | AB5: 0 | AC5: 584 | AD5: 42.43999863 | AE5: 0 | AF5: 0 | AG5: 0.03999999911 | AH5: 81.48002625 | AI5: 110.4800262 | AJ5: 32.11998749 | AK5: 113.7999954 | AL5: 274.3200684 | AM5: 238.0000305 | AN5: 999.0776978 | AO5: 154.760025 | AP5: 0 | AQ5: 0 | AR5: 0 | AS5: 0 | AT5: 0 | AU5: =SUM(C5:AT5) -> 3599.997851
A6: 5 | B6: 12.61994934 | C6: 7.079999924 | D6: 2.279999971 | E6: 77.76007843 | F6: 11.99999905 | G6: 7.679996967 | H6: 0 | I6: 33.23999023 | J6: 15.59999084 | K6: 16.4799881 | L6: 33.51998901 | M6: 2.559999943 | N6: 20.60000038 | O6: 22.27999496 | P6: 0.4799999893 | Q6: 1.200000048 | R6: 72.75999451 | S6: 4.599999905 | T6: 9.159999847 | U6: 12.19999218 | V6: 6.959997654 | W6: 0 | X6: 0 | Y6: 0 | Z6: 0.6799999475 | AA6: 71 | AB6: 0 | AC6: 859.4799805 | AD6: 1105.640137 | AE6: 35.15999603 | AF6: 0 | AG6: 0.03999999911 | AH6: 14.03999901 | AI6: 49.59999466 | AJ6: 22.59999657 | AK6: 51.20000076 | AL6: 141.8400116 | AM6: 58.44000244 | AN6: 753.7593994 | AO6: 78.08004761 | AP6: 0 | AQ6: 0 | AR6: 0 | AS6: 0 | AT6: 0 | AU6: =SUM(C6:AT6) -> 3599.999577
A7: 6 | B7: 3.523579121 | C7: 2.639999866 | D7: 0.9200000167 | E7: 8.279996872 | F7: 1.680000067 | G7: 0.4799999893 | H7: 0 | I7: 4.399999619 | J7: 2.159999847 | K7: 2.599999905 | L7: 4.360000134 | M7: 1.080000043 | N7: 4.079999924 | O7: 2.639999866 | P7: 0 | Q7: 0 | R7: 5.519999981 | S7: 0 | T7: 1.679999948 | U7: 3.079999924 | V7: 0.6000000238 | W7: 0 | X7: 0 | Y7: 0.200000003 | Z7: 0.6000000238 | AA7: 0 | AB7: 0 | AC7: 22.15999985 | AD7: 3319.519775 | AE7: 91.16000366 | AF7: 0 | AG7: 11.35999966 | AH7: 0.719999969 | AI7: 5.519999504 | AJ7: 4.479999542 | AK7: 1.439999938 | AL7: 17.87999916 | AM7: 11.5199995 | AN7: 55.72000504 | AO7: 11.51999569 | AP7: 0 | AQ7: 0 | AR7: 0 | AS7: 0 | AT7: 0 | AU7: =SUM(C7:AT7) -> 3599.999773
A8: 7 | B8: 12.21683693 | C8: 6.519999504 | D8: 1.799999952 | E8: 85.60001373 | F8: 8.359999657 | G8: 9.439995766 | H8: 0 | I8: 26.79998398 | J8: 10.95999622 | K8: 10.71999359 | L8: 25.03998756 | M8: 4.159999847 | N8: 25.55999374 | O8: 19.51999664 | P8: 1.919999957 | Q8: 11.27999973 | R8: 108.7600174 | S8: 2.319999933 | T8: 9.079999924 | U8: 9.399995804 | V8: 7.559998035 | W8: 0 | X8: 0 | Y8: 1.039999962 | Z8: 1.75999999 | AA8: 4.28000021 | AB8: 0 | AC8: 288.519989 | AD8: 1934.959961 | AE8: 96.68000793 | AF8: 0 | AG8: 9.720000267 | AH8: 31.31999779 | AI8: 62.40000916 | AJ8: 19.11999702 | AK8: 46.48000336 | AL8: 43.47999954 | AM8: 134.6000061 | AN8: 475.480011 | AO8: 65.36008453 | AP8: 0 | AQ8: 0 | AR8: 0 | AS8: 0 | AT8: 0 | AU8: =SUM(C8:AT8) -> 3600.000038
A9: 8 | B9: 4.685998917 | C9: 3.039999962 | D9: 1.800000072 | E9: 24.71998596 | F9: 1.680000067 | G9: 1.679999948 | H9: 0 | I9: 11.51999378 | J9: 5.159999371 | K9: 4.279999733 | L9: 12.87999535 | M9: 3.399999857 | N9: 6.239999771 | O9: 9.679999352 | P9: 0.3600000143 | Q9: 4.56000042 | R9: 45.19999695 | S9: 0.6000000238 | T9: 2.920000076 | U9: 5.599998474 | V9: 1.919999957 | W9: 0 | X9: 0 | Y9: 0.2800000012 | Z9: 0 | AA9: 22.92000008 | AB9: 0 | AC9: 421.1600037 | AD9: 2354.999512 | AE9: 141.8400116 | AF9: 0 | AG9: 0.07999999821 | AH9: 7.799999237 | AI9: 32.47999573 | AJ9: 6.63999939 | AK9: 21.59999847 | AL9: 45.60000229 | AM9: 17.03999901 | AN9: 354.1201782 | AO9: 25.47999001 | AP9: 0 | AQ9: 0 | AR9: 0 | AS9: 0 | AT9: 0 | AU9: =SUM(C9:AT9) -> 3599.279659
A10: 9 | B10: 12.12042522 | C10: 0.2399999946 | D10: 1.440000057 | E10: 40.20002365 | F10: 38.19999695 | G10: 6.159998417 | H10: 0 | I10: 25.67998123 | J10: 7.959998131 | K10: 4.759999275 | L10: 24.55999184 | M10: 1.919999957 | N10: 15.51999664 | O10: 14.63999653 | P10: 1.439999938 | Q10: 7.799999237 | R10: 35.84000015 | S10: 4.199999809 | T10: 227.6399536 | U10: 6.239997864 | V10: 2.399999857 | W10: 0 | X10: 0 | Y10: 1.519999981 | Z10: 3.720000029 | AA10: 56.24000168 | AB10: 0 | AC10: 542.5599976 | AD10: 1626.040039 | AE10: 36.95999527 | AF10: 0 | AG10: 0.03999999911 | AH10: 1.920000076 | AI10: 41.79999924 | AJ10: 10.59999847 | AK10: 36.15999603 | AL10: 89.87999725 | AM10: 46.71999359 | AN10: 572.5197144 | AO10: 57.96006012 | AP10: 8.520000458 | AQ10: 0 | AR10: 0 | AS10: 0 | AT10: 0 | AU10: =SUM(C10:AT10) -> 3599.999726
A11: 10 | B11: 29.16097641 | C11: 4.119999886 | D11: 3.24000001 | E11: 103.0799561 | F11: 83.88001251 | G11: 32.03998184 | H11: 0 | I11: 46.80006027 | J11: 6.599998951 | K11: 6.639997482 | L11: 46.56006622 | M11: 2.039999962 | N11: 34.11999512 | O11: 25.87998772 | P11: 6.359999657 | Q11: 3.600000381 | R11: 21.51999855 | S11: 3 | T11: 571.7200928 | U11: 11.35999584 | V11: 27.63998222 | W11: 0.9200000167 | X11: 0 | Y11: 2.680000305 | Z11: 4.920000553 | AA11: 48.44000244 | AB11: 0 | AC11: 216.2399902 | AD11: 0 | AE11: 0 | AF11: 0 | AG11: 0 | AH11: 3.24000001 | AI11: 59.28001404 | AJ11: 12.71999931 | AK11: 100.8000259 | AL11: 141.8400421 | AM11: 215.8402252 | AN11: 1650.474609 | AO11: 102.4000092 | AP11: 0 | AQ11: 0 | AR11: 0 | AS11: 0 | AT11: 0 | AU11: =SUM(C11:AT11) -> 3599.995044
A12: 11 | B12: 42.4990921 | C12: 4.359999657 | D12: 2.799999952 | E12: 140.239975 | F12: 107.4800034 | G12: 47.88006592 | H12: 0 | I12: 72.16010284 | J12: 14.95999241 | K12: 12.07999325 | L12: 75.2000885 | M12: 4.119999886 | N12: 61.28003693 | O12: 47.12001038 | P12: 2.519999981 | Q12: 4.56000042 | R12: 66.03998566 | S12: 8.600000381 | T12: 685.0797119 | U12: 12.15999317 | V12: 44.6400528 | W12: 3.480000019 | X12: 0 | Y12: 1.559999943 | Z12: 4.279999733 | AA12: 4.519999981 | AB12: 0 | AC12: 428.480011 | AD12: 0 | AE12: 0 | AF12: 0 | AG12: 0 | AH12: 11.75999832 | AI12: 85.60003662 | AJ12: 19.75999641 | AK12: 100.9200363 | AL12: 199.6401367 | AM12: 207.0800629 | AN12: 979.677063 | AO12: 139.9600525 | AP12: 0 | AQ12: 0 | AR12: 0 | AS12: 0 | AT12: 0 | AU12: =SUM(C12:AT12) -> 3599.997406
A13: 12 | B13: 26.74034691 | C13: 3.359999895 | D13: 1.800000072 | E13: 100.1199417 | F13: 105.4799957 | G13: 16.67999077 | H13: 0 | I13: 44.84004974 | J13: 8.919997215 | K13: 4.319999695 | L13: 43.3200531 | M13: 2.519999981 | N13: 40.52000046 | O13: 31.59998894 | P13: 1.560000062 | Q13: 31.07999229 | R13: 81.12001038 | S13: 4.879999638 | T13: 591.0801392 | U13: 8.039997101 | V13: 15.59999084 | W13: 0 | X13: 0 | Y13: 1.119999886 | Z13: 1.119999886 | AA13: 4.559999943 | AB13: 0 | AC13: 331.9200134 | AD13: 792.3599854 | AE13: 0 | AF13: 0 | AG13: 0 | AH13: 30.23999596 | AI13: 85.0400238 | AJ13: 9.239998817 | AK13: 61.60002136 | AL13: 91.79998779 | AM13: 74.51999664 | AN13: 896.1193237 | AO13: 83.52001953 | AP13: 0 | AQ13: 0 | AR13: 0 | AS13: 0 | AT13: 0 | AU13: =SUM(C13:AT13) -> 3599.999513
A14: 13 | B14: 48.34475708 | C14: 5.599998951 | D14: 5.039999962 | E14: 120.9998016 | F14: 76.12000275 | G14: 29.95998192 | H14: 0 | I14: 85.6800766 | J14: 29.07998848 | K14: 17.27999115 | L14: 94.55996704 | M14: 3.480000257 | N14: 81.76003265 | O14: 60.88001633 | P14: 3.799999952 | Q14: 2.039999962 | R14: 41.03999329 | S14: 11.31999779 | T14: 832.3602905 | U14: 13.59999275 | V14: 30.439991 | W14: 0 | X14: 0 | Y14: 1.120000005 | Z14: 3.920000553 | AA14: 0 | AB14: 0 | AC14: 420.8000183 | AD14: 220.0800018 | AE14: 12 | AF14: 0 | AG14: 9.640000343 | AH14: 3.480000257 | AI14: 159.3600769 | AJ14: 24.23999405 | AK14: 107.720047 | AL14: 169.6799927 | AM14: 173.0401001 | AN14: 633.5592041 | AO14: 115.840004 | AP14: 0 | AQ14: 0 | AR14: 0 | AS14: 0 | AT14: 0 | AU14: =SUM(C14:AT14) -> 3599.519563
A15: 14 | B15: 33.33725357 | C15: 4.039999962 | D15: 3.279999971 | E15: 69.72011566 | F15: 96.84001923 | G15: 13.79999256 | H15: 0 | I15: 45.92005157 | J15: 14.87999249 | K15: 7.07999754 | L15: 42.80002975 | M15: 4.360000134 | N15: 48.88002396 | O15: 39.75999832 | P15: 3.160000086 | Q15: 1.680000067 | R15: 27.83999634 | S15: 4.999999523 | T15: 599.8796997 | U15: 7.519998074 | V15: 12.79999256 | W15: 4.400000095 | X15: 0 | Y15: 1.24000001 | Z15: 2.720000267 | AA15: 7.119999886 | AB15: 0 | AC15: 828.4400024 | AD15: 315.6000061 | AE15: 18.92000008 | AF15: 0 | AG15: 0.5600000024 | AH15: 5.159999847 | AI15: 55.76000595 | AJ15: 12.3599968 | AK15: 61.12002563 | AL15: 139.440033 | AM15: 69.92002106 | AN15: 937.317688 | AO15: 90.68001556 | AP15: 0 | AQ15: 0 | AR15: 0 | AS15: 0 | AT15: 0 | AU15: =SUM(C15:AT15) -> 3599.997702
A16: 15 | B16: 6.313555241 | C16: 0 | D16: 0 | E16: 9.239995956 | F16: 22.44000053 | G16: 2.399999857 | H16: 0 | I16: 10.79999352 | J16: 1.319999933 | K16: 0.4799999893 | L16: 9.039996147 | M16: 0.3600000143 | N16: 6.519999027 | O16: 6.919999599 | P16: 1.439999938 | Q16: 9.359998703 | R16: 5.640000343 | S16: 0 | T16: 795.5999146 | U16: 0.8400000334 | V16: 2.639999866 | W16: 0 | X16: 0 | Y16: 0.1599999964 | Z16: 0.4399999976 | AA16: 3.640000105 | AB16: 0 | AC16: 98.72000122 | AD16: 1558.119995 | AE16: 59.60000229 | AF16: 0 | AG16: 754.7600098 | AH16: 4.320000172 | AI16: 2.400000095 | AJ16: 0.2399999946 | AK16: 12.71999645 | AL16: 16.92000008 | AM16: 10.19999886 | AN16: 173.7200317 | AO16: 18.99999237 | AP16: 0 | AQ16: 0 | AR16: 0 | AS16: 0 | AT16: 0 | AU16: =SUM(C16:AT16) -> 3599.999926
A17: 16 | B17: 46.50868225 | C17: 4.199999809 | D17: 5.35999918 | E17: 101.7199402 | F17: 239.6001129 | G17: 21.59998703 | H17: 0 | I17: 75.32009888 | J17: 11.27999401 | K17: 7.559998035 | L17: 68.40013885 | M17: 2.279999971 | N17: 68.04003143 | O17: 47.08000565 | P17: 2.920000076 | Q17: 40.51999664 | R17: 78.76002502 | S17: 6.159999371 | T17: 595.5593872 | U17: 9.719995499 | V17: 15.59998989 | W17: 0 | X17: 0 | Y17: 1.879999876 | Z17: 4.71999979 | AA17: 8.440000534 | AB17: 0 | AC17: 464.4799805 | AD17: 36.79999924 | AE17: 12 | AF17: 0 | AG17: 0.03999999911 | AH17: 32.75999832 | AI17: 150.5999908 | AJ17: 18.51999474 | AK17: 122.8399963 | AL17: 114.6800079 | AM17: 143.9200439 | AN17: 943.5974731 | AO17: 137.6400146 | AP17: 5.399999619 | AQ17: 0 | AR17: 0 | AS17: 0 | AT17: 0 | AU17: =SUM(C17:AT17) -> 3599.997199
A18: 17 | B18: 33.43308258 | C18: 3.839999914 | D18: 2.799999952 | E18: 132.7598572 | F18: 510.8397522 | G18: 19.83998871 | H18: 0 | I18: 61.84013367 | J18: 10.23999691 | K18: 5.599999428 | L18: 54.52006912 | M18: 1.120000005 | N18: 41.560009 | O18: 35.95998764 | P18: 7.079998493 | Q18: 3.360000134 | R18: 24.63999748 | S18: 5.43999958 | T18: 541.4795532 | U18: 6.959998608 | V18: 16.83998871 | W18: 0.6800000072 | X18: 0 | Y18: 3.960000515 | Z18: 2.840000153 | AA18: 19.52000046 | AB18: 0 | AC18: 392.0799866 | AD18: 0 | AE18: 0 | AF18: 0 | AG18: 0 | AH18: 0.2399999946 | AI18: 54.12003708 | AJ18: 10.71999836 | AK18: 69.2800293 | AL18: 77.35999298 | AM18: 86.3600235 | AN18: 1279.396729 | AO18: 116.7199326 | AP18: 0 | AQ18: 0 | AR18: 0 | AS18: 0 | AT18: 0 | AU18: =SUM(C18:AT18) -> 3599.99606
A19: 18 | B19: 16.25502777 | C19: 0.2399999946 | D19: 0.2399999946 | E19: 23.95998764 | F19: 41.72000504 | G19: 5.159998894 | H19: 0 | I19: 21.03998566 | J19: 1.679999948 | K19: 1.560000062 | L19: 21.39998817 | M19: 0.719999969 | N19: 13.19999695 | O19: 12.15999699 | P19: 0.2399999946 | Q19: 0.9599999785 | R19: 19.43999672 | S19: 0.6000000238 | T19: 550.3598022 | U19: 2.75999999 | V19: 5.919999123 | W19: 1.120000005 | X19: 0 | Y19: 0.7599999905 | Z19: 0.200000003 | AA19: 919.5199585 | AB19: 0 | AC19: 857.1199341 | AD19: 0 | AE19: 0 | AF19: 0 | AG19: 0 | AH19: 3.240000248 | AI19: 10.35999775 | AJ19: 3.119999886 | AK19: 17.51999664 | AL19: 39.59999847 | AM19: 44.88000107 | AN19: 906.9593506 | AO19: 72.08006287 | AP19: 0 | AQ19: 0 | AR19: 0 | AS19: 0 | AT19: 0 | AU19: =SUM(C19:AT19) -> 3599.839057
A20: 19 | B20: 3.976010561 | C20: 0 | D20: 0 | E20: 1.679999948 | F20: 1805.399902 | G20: 0 | H20: 0 | I20: 0 | J20: 0 | K20: 0 | L20: 0 | M20: 0 | N20: 0.719999969 | O20: 1.120000005 | P20: 0.4799999893 | Q20: 0 | R20: 0 | S20: 0 | T20: 48.80000687 | U20: 0 | V20: 0 | W20: 0 | X20: 0 | Y20: 0 | Z20: 0.1599999964 | AA20: 1451.039917 | AB20: 0 | AC20: 243.1200104 | AD20: 0 | AE20: 0 | AF20: 0 | AG20: 0 | AH20: 0 | AI20: 0 | AJ20: 0 | AK20: 0 | AL20: 0 | AM20: 0 | AN20: 46.52001572 | AO20: 0.9599999785 | AP20: 0 | AQ20: 0 | AR20: 0 | AS20: 0 | AT20: 0 | AU20: =SUM(C20:AT20) -> 3599.999852
A21: 20 | B21: 28.90297127 | C21: 1.199999928 | D21: 2.639999866 | E21: 108.4398804 | F21: 331.2400208 | G21: 11.03999519 | H21: 0 | I21: 49.2400589 | J21: 8.799998283 | K21: 5.199999809 | L21: 43.72003937 | M21: 0.9599999785 | N21: 44.24002457 | O21: 33.95999908 | P21: 7.239998817 | Q21: 8.880000114 | R21: 31.47999382 | S21: 2.400000095 | T21: 598.27948 | U21: 7.959997654 | V21: 10.31999588 | W21: 0 | X21: 0 | Y21: 2.480000019 | Z21: 4.639999866 | AA21: 32.76000214 | AB21: 0 | AC21: 722.8799438 | AD21: 0 | AE21: 0 | AF21: 0 | AG21: 0 | AH21: 6.71999979 | AI21: 35.68000031 | AJ21: 7.160000324 | AK21: 78.95999908 | AL21: 61.60000992 | AM21: 71.28000641 | AN21: 1153.156738 | AO21: 115.4399796 | AP21: 0 | AQ21: 0 | AR21: 0 | AS21: 0 | AT21: 0 | AU21: =SUM(C21:AT21) -> 3599.996162
A22: 21 | B22: 28.05763817 | C22: 2.200000048 | D22: 1.439999938 | E22: 211.9213257 | F22: 55.92000961 | G22: 2.760000229 | H22: 0 | I22: 30.47997665 | J22: 7.279998779 | K22: 5.919998169 | L22: 25.55998611 | M22: 1.960000038 | N22: 38.56000137 | O22: 44.68000793 | P22: 4.600000381 | Q22: 4.199999809 | R22: 73.96000671 | S22: 2.200000048 | T22: 236.2801361 | U22: 4.079999924 | V22: 1.199999928 | W22: 0.2399999946 | X22: 0 | Y22: 0.200000003 | Z22: 1.199999928 | AA22: 127.5599976 | AB22: 0 | AC22: 421.4000244 | AD22: 104.4800034 | AE22: 2.519999981 | AF22: 0 | AG22: 1.519999981 | AH22: 18.59999657 | AI22: 35.40000153 | AJ22: 8.039999008 | AK22: 34.88000107 | AL22: 354.519989 | AM22: 13.59999847 | AN22: 1521.433594 | AO22: 194.6405945 | AP22: 2.559999943 | AQ22: 0 | AR22: 0 | AS22: 0 | AT22: 0 | AU22: =SUM(C22:AT22) -> 3597.995647
A23: 22 | B23: 2.430486917 | C23: 0.9599999785 | D23: 0.4799999893 | E23: 13.35999107 | F23: 2.480000019 | G23: 0.2399999946 | H23: 0 | I23: 7.119997501 | J23: 4.319999695 | K23: 3.720000029 | L23: 6.959998131 | M23: 0.3600000143 | N23: 6.36000061 | O23: 4.359999657 | P23: 0.2399999946 | Q23: 0 | R23: 8.760000229 | S23: 0.5600000024 | T23: 2.680000305 | U23: 1.679999948 | V23: 0.2399999946 | W23: 0 | X23: 0 | Y23: 0 | Z23: 0.8399999142 | AA23: 108.2799988 | AB23: 0 | AC23: 418.0799866 | AD23: 2570.839844 | AE23: 132.480011 | AF23: 0 | AG23: 12.15999985 | AH23: 1.440000057 | AI23: 11.03999996 | AJ23: 4.799999237 | AK23: 7.919998169 | AL23: 3.639999866 | AM23: 11.39999962 | AN23: 238.6801147 | AO23: 13.51999569 | AP23: 0 | AQ23: 0 | AR23: 0 | AS23: 0 | AT23: 0 | AU23: =SUM(C23:AT23) -> 3599.999934
A24: 23 | B24: 12.53044796 | C24: 5.279999256 | D24: 1.320000052 | E24: 98.39989471 | F24: 14.87999916 | G24: 1.919999957 | H24: 0 | I24: 29.23997688 | J24: 8.999996185 | K24: 11.51999378 | L24: 27.07998657 | M24: 2.639999866 | N24: 23.55998993 | O24: 23.7999897 | P24: 0.3600000143 | Q24: 8.519999504 | R24: 102.3200073 | S24: 1.800000072 | T24: 11.80000019 | U24: 6.839997292 | V24: 1.319999933 | W24: 0 | X24: 0 | Y24: 1.439999938 | Z24: 0.3199999928 | AA24: 183.6800079 | AB24: 0 | AC24: 767.2000122 | AD24: 989.0400391 | AE24: 102.0399933 | AF24: 0 | AG24: 11.47999954 | AH24: 23.04000092 | AI24: 75.55998993 | AJ24: 14.35999775 | AK24: 33.3599968 | AL24: 37.55999756 | AM24: 17.88000107 | AN24: 875.0791016 | AO24: 74.08006287 | AP24: 0 | AQ24: 0 | AR24: 0 | AS24: 0 | AT24: 0 | AU24: =SUM(C24:AT24) -> 3587.719031
A25: 24 | B25: 0.05398762226 | C25: 0 | D25: 0 | E25: 0 | F25: 0 | G25: 0 | H25: 0 | I25: 0 | J25: 0 | K25: 0 | L25: 0 | M25: 0 | N25: 0 | O25: 0 | P25: 0 | Q25: 0 | R25: 0 | S25: 0 | T25: 0 | U25: 0 | V25: 0 | W25: 0 | X25: 0 | Y25: 0 | Z25: 0 | AA25: 0 | AB25: 0 | AC25: 17.71999931 | AD25: 1823.079712 | AE25: 81.9200058 | AF25: 0 | AG25: 0.03999999911 | AH25: 0 | AI25: 0 | AJ25: 0 | AK25: 0 | AL25: 0 | AM25: 0 | AN25: 0.5199999809 | AO25: 0 | AP25: 0 | AQ25: 0 | AR25: 0 | AS25: 0 | AT25: 0 | AU25: =SUM(C25:AT25) -> 1923.279717
A26: SUM | B26: =SUM(B2:B25) -> 536.4664732 | C26: =SUM(C2:C25) -> 130.9199603 | D26: =SUM(D2:D25) -> 75.15998568 | E26: =SUM(E2:E25) -> 2193.764131 | F26: =SUM(F2:F25) -> 3652.039832 | G26: =SUM(G2:G25) -> 324.3599095 | H26: =SUM(H2:H25) -> 0 | I26: =SUM(I2:I25) -> 971.2807975 | J26: =SUM(J2:J25) -> 299.1999453 | K26: =SUM(K2:K25) -> 249.5599416 | L26: =SUM(L2:L25) -> 953.7606406 | M26: =SUM(M2:M25) -> 83.35998225 | N26: =SUM(N2:N25) -> 856.5601684 | O26: =SUM(O2:O25) -> 741.0000411 | P26: =SUM(P2:P25) -> 57.23999742 | Q26: =SUM(Q2:Q25) -> 155.3599874 | R26: =SUM(R2:R25) -> 1710.520224 | S26: =SUM(S2:S25) -> 80.59999555 | T26: =SUM(T2:T25) -> 7009.798174 | U26: =SUM(U2:U25) -> 240.3199604 | V26: =SUM(V2:V25) -> 291.0399312 | W26: =SUM(W2:W25) -> 10.84000014 | X26: =SUM(X2:X25) -> 0 | Y26: =SUM(Y2:Y25) -> 24.96000043 | Z26: =SUM(Z2:Z25) -> 47.4000008 | AA26: =SUM(AA2:AA25) -> 3455.079892 | AB26: =SUM(AB2:AB25) -> 0 | AC26: =SUM(AC2:AC25) -> 10838.27998 | AD26: =SUM(AD2:AD25) -> 18843.71901 | AE26: =SUM(AE2:AE25) -> 829.680027 | AF26: =SUM(AF2:AF25) -> 0 | AG26: =SUM(AG2:AG25) -> 822.3600095 | AH26: =SUM(AH2:AH25) -> 413.2800378 | AI26: =SUM(AI2:AI25) -> 1470.960332 | AJ26: =SUM(AJ2:AJ25) -> 364.2799976 | AK26: =SUM(AK2:AK25) -> 1246.720238 | AL26: =SUM(AL2:AL25) -> 2894.120705 | AM26: =SUM(AM2:AM25) -> 2105.320596 | AN26: =SUM(AN2:AN25) -> 18963.71592 | AO26: =SUM(AO2:AO25) -> 2282.002755 | AP26: =SUM(AP2:AP25) -> 16.48000002 | AQ26: =SUM(AQ2:AQ25) -> 0 | AR26: =SUM(AR2:AR25) -> 0 | AS26: =SUM(AS2:AS25) -> 0 | AT26: =SUM(AT2:AT25) -> 0

Sheet Bin Data Plot

Sheet Tabelle3
